bitfinex/quotes_ETHUSD_20250905
["timestamp","ask_amount","ask_price","bid_price","bid_amount"]
[1757062068644,0.0252,4407.8,4407.7,12.17329586]
[1757062069655,0.02297204,4407.8,4407.7,12.17329586]
[1757062072841,0.02397204,4407.8,4407.7,8.35829586]
[1757062073044,0.02397204,4407.8,4407.7,12.17129586]
[1757062076184,0.02397204,4407.8,4407.7,8.35829586]
[1757062076382,0.28897204,4407.8,4407.7,7.15049586]
[1757062076883,0.02397204,4407.8,4407.7,7.15049586]
[1757062077375,1e-08,4407.8,4407.7,9.91409586]
[1757062077579,1e-08,4407.8,4407.7,15.07629586]
[1757062077953,1e-08,4407.8,4407.7,15.18909586]
[1757062079176,1e-08,4407.8,4407.7,13.37509586]
[1757062079483,1e-08,4407.8,4407.7,13.82599586]
[1757062080285,1e-08,4407.8,4407.7,14.61799586]
[1757062080483,1e-08,4407.8,4407.7,13.74449586]
[1757062081261,0.00020001,4408.3,4408.2,2.26849961]
[1757062081500,0.00020001,4408.3,4408.2,12.59416181]
[1757062081655,0.00020001,4408.3,4408.2,13.82096181]
[1757062085298,0.00020001,4408.3,4408.2,16.82096181]
[1757062085696,0.00020001,4408.3,4408.2,16.91184374]
[1757062087477,0.00020001,4408.3,4408.2,17.02464374]
[1757062088263,0.00020001,4408.3,4408.2,13.19664374]
[1757062088479,0.00020001,4408.3,4408.2,12.27044374]
[1757062088695,0.00020001,4408.3,4408.2,16.01956181]
[1757062088897,1e-08,4408.8,4408.7,6.06024233]
[1757062089096,1e-08,4408.8,4408.7,17.65705321]
[1757062089301,1e-08,4408.8,4408.7,19.44805321]
[1757062091001,1e-08,4408.8,4408.7,18.99335321]
[1757062091193,0.00100001,4408.8,4408.7,18.99335321]
[1757062092104,0.00100001,4408.8,4408.7,19.16687757]
[1757062092400,0.468,4410.9,4408.9,0.792]
[1757062092603,0.468,4410.9,4410.7,2.26721382]
[1757062092604,0.9263,4410.9,4410.7,2.26721382]
[1757062092800,0.9263,4410.9,4410.7,6.13221382]
[1757062093104,1.1944,4410.8,4410.7,6.13221382]
[1757062095110,0.2702,4410.8,4410.7,6.13221382]
[1757062097081,1.1944,4410.8,4409.9,3.861]
[1757062097407,1.1944,4410.8,4410.5,2.26730701]
[1757062097408,0.9242,4410.7,4410.5,2.26730701]
[1757062097587,1.1694,4410.6,4410.5,2.26730701]
[1757062098383,1.1694,4410.6,4410.4,2.26734498]
[1757062098612,0.9221,4410.5,4410.4,2.26734498]
[1757062098816,1.1715,4410.5,4410.4,2.26734498]
[1757062099118,0.025,4410.8,4410.7,3.05921382]
[1757062099411,0.025,4410.8,4410.7,6.93221382]
[1757062099622,0.025,4410.8,4410.7,7.22791382]
[1757062102385,0.025,4410.8,4410.7,8.26851382]
[1757062106537,0.025,4410.8,4410.7,7.79621382]
[1757062106709,0.025,4410.8,4410.7,9.78951941]
[1757062108124,0.025,4410.8,4410.7,9.33401941]
[1757062109009,0.0252,4410.8,4410.7,9.33401941]
[1757062111147,1.1946,4410.8,4410.5,3.861]
[1757062111350,0.9242,4410.7,4410.4,2.26736803]
[1757062111550,0.2473,4410.5,4410.3,6.12840329]
[1757062111796,0.468,4410.4,4410.3,3.861]
[1757062111927,1.1715,4410.4,4410.2,3.862]
[1757062112252,0.9201,4410.3,4410.2,6.12946864]
[1757062112452,1.1715,4410.3,4410.2,6.12946864]
[1757062113707,0.7035,4410.3,4410.2,6.12946864]
[1757062114740,0.2514,4410.3,4410.2,6.12946864]
[1757062115846,0.7194,4410.3,4410.2,3.862]
[1757062116011,1.1695,4410.3,4409.8,3.859]
[1757062116212,3.18557086,4410.2,4409.8,3.859]
[1757062116516,0.2534,4409.9,4409.3,3.859]
[1757062116714,3.18380948,4409.8,4409.3,3.859]
[1757062116915,3.18380948,4409.8,4409.2,2.26795143]
[1757062116916,0.2553,4409.4,4409.2,6.12795143]
[1757062117111,0.2553,4409.4,4409.3,2.26793368]
[1757062117640,0.2553,4409.4,4409.2,6.127965]
[1757062118026,0.7015,4409.4,4409.2,2.267965]
[1757062118215,0.7015,4409.4,4409.1,6.12801596]
[1757062118415,0.7015,4409.4,4409.2,2.26797957]
[1757062118851,0.7015,4409.4,4409.1,6.12801343]
[1757062119063,0.0252,4410.8,4409.4,0.792]
[1757062119337,0.0252,4410.8,4410.4,2.26732396]
[1757062119546,0.0252,4410.8,4410.5,2.26726854]
[1757062119735,0.2438,4410.6,4410.3,3.864]
[1757062119923,0.4576,4410.5,4410.2,6.13142424]
[1757062120111,0.246,4410.3,4410.1,6.13150496]
[1757062120513,0.246,4410.3,4410.2,2.26747086]
[1757062121042,0.4806,4410.8,4410.2,2.26747086]
[1757062121245,0.4806,4410.8,4410.2,0.1128]
[1757062121454,0.248,4410.3,4410.2,2.38023843]
[1757062123857,0.248,4410.3,4410.2,0.1128]
[1757062124155,0.248,4410.3,4410.2,2.38027086]
[1757062125460,0.248,4410.3,4410.2,0.1128]
[1757062125623,0.248,4410.3,4410.2,2.38027086]
[1757062125824,0.248,4410.3,4410.2,0.1128]
[1757062126420,0.248,4410.3,4410.2,2.38027086]
[1757062127050,2.26721846,4410.7,4410.2,2.38026308]
[1757062127243,2.29237485,4410.8,4410.2,2.67716308]
[1757062127551,2.2672197,4410.7,4410.2,0.4097]
[1757062127748,2.2672197,4410.7,4410.2,2.38026327]
[1757062127950,2.2672197,4410.7,4410.2,0.1128]
[1757062128438,0.3013,4410.3,4410.2,0.1128]
[1757062128641,2.56871944,4410.3,4410.2,0.1128]
[1757062128817,2.2674729,4410.2,4409.6,3.857]
[1757062129023,2.2674729,4410.2,4409.9,0.1128]
[1757062129231,0.3013,4410.0,4409.9,0.1128]
[1757062129656,0.3013,4410.0,4409.7,0.1128]
[1757062129657,2.96947369,4410.0,4409.7,0.1128]
[1757062129942,2.66824112,4409.9,4409.7,0.1128]
[1757062130145,2.26767653,4409.8,4409.7,0.1128]
[1757062130349,2.56897653,4409.8,4409.7,0.1128]
[1757062130561,3.46137653,4409.8,4409.2,2.26794962]
[1757062130743,3.46137653,4409.8,4409.3,3.9688]
[1757062131138,1.1937,4409.8,4409.3,6.23668992]
[1757062131338,3.4614005,4409.8,4409.3,3.9688]
[1757062131536,1.1937,4409.8,4409.3,3.9688]
[1757062131755,2.26783627,4409.5,4409.3,3.9688]
[1757062132057,2.26786554,4409.5,4409.3,3.9688]
[1757062132247,2.56918225,4409.4,4409.3,3.9688]
[1757062132444,2.56918225,4409.4,4409.3,0.1128]
[1757062132755,2.26804563,4409.1,4409.0,3.9668]
[1757062132928,2.26804563,4409.1,4409.0,0.1128]
[1757062132929,2.56934563,4409.1,4409.0,0.1128]
[1757062133619,2.56934563,4409.1,4408.8,0.029]
[1757062133620,2.26811422,4409.0,4408.8,0.029]
[1757062133849,0.3013,4409.1,4408.8,0.029]
[1757062133850,2.26813944,4408.9,4408.8,0.029]
[1757062134019,2.56943944,4408.9,4408.8,0.029]
[1757062135433,3.46183944,4408.9,4408.8,0.029]
[1757062136839,3.46103944,4408.9,4408.8,0.029]
[1757062137124,2.96923944,4408.9,4408.8,0.029]
[1757062137347,2.56863944,4408.9,4408.8,0.029]
[1757062137750,2.96923944,4408.9,4408.8,0.029]
[1757062137948,6.06043944,4408.9,4408.8,0.029]
[1757062138154,9.41963944,4408.9,4408.8,0.029]
[1757062141431,5.56863944,4408.9,4408.8,0.029]
[1757062141634,9.41763944,4408.9,4408.8,0.029]
[1757062142563,9.11633944,4408.9,4408.8,0.029]
[1757062142764,5.26819089,4408.8,4408.1,1e-08]
[1757062143072,2.26849961,4408.2,4408.1,1e-08]
[1757062143242,9.38849961,4408.2,4408.1,1e-08]
[1757062143438,10.33569961,4408.2,4408.1,1e-08]
[1757062143960,9.41129961,4408.2,4408.1,1e-08]
[1757062144757,6.41129961,4408.2,4408.1,1e-08]
[1757062145134,7.36069961,4408.2,4408.1,1e-08]
[1757062145336,10.73583199,4408.2,4408.1,1e-08]
[1757062145662,10.36069961,4408.2,4408.1,1e-08]
[1757062145861,14.66768626,4408.2,4408.1,1e-08]
[1757062147033,10.36069961,4408.2,4408.1,1e-08]
[1757062147236,14.66768626,4408.2,4408.1,1e-08]
[1757062147478,5.51229961,4408.2,4408.1,1e-08]
[1757062147775,9.41129961,4408.2,4408.1,1e-08]
[1757062150059,10.30419961,4408.2,4408.1,1e-08]
[1757062150288,10.95897883,4408.2,4408.1,1e-08]
[1757062152472,7.05997883,4408.2,4408.1,1e-08]
[1757062152679,10.95697883,4408.2,4408.1,1e-08]
[1757062153486,7.05997883,4408.2,4408.1,1e-08]
[1757062153690,10.95697883,4408.2,4408.1,1e-08]
[1757062158713,9.40229961,4408.2,4408.1,1e-08]
[1757062159022,5.26849961,4408.2,4408.1,1e-08]
[1757062159194,5.26849961,4408.2,4408.1,0.30420001]
[1757062159394,9.15849961,4408.2,4408.1,0.30420001]
[1757062159593,9.15849961,4408.2,4408.1,1e-08]
[1757062159808,9.42349961,4408.2,4408.1,1e-08]
[1757062164622,9.42269961,4408.2,4408.1,1e-08]
[1757062165317,2.26860254,4408.0,4407.9,1e-08]
[1757062165520,6.15260254,4408.0,4407.9,1e-08]
[1757062165717,6.41930254,4408.0,4407.9,1e-08]
[1757062165910,6.51025287,4408.0,4407.9,1e-08]
[1757062166224,7.39975287,4408.0,4407.9,1e-08]
[1757062168028,6.94515287,4408.0,4407.9,1e-08]
[1757062168230,6.51025287,4408.0,4407.9,1e-08]
[1757062168424,2.26870547,4407.8,4407.6,0.004]
[1757062168605,10.93550547,4407.8,4407.6,0.004]
[1757062168800,11.20390547,4407.8,4407.6,0.004]
[1757062169013,11.2948558,4407.8,4407.6,0.004]
[1757062169418,11.7280558,4407.8,4407.6,0.004]
[1757062169823,11.2948558,4407.8,4407.6,0.004]
[1757062170524,11.2948558,4407.8,4405.9,3.06564279]
[1757062170525,2.26880842,4407.6,4407.2,1e-08]
[1757062170729,2.26896285,4407.3,4407.2,1e-08]
[1757062170905,9.45446285,4407.3,4407.2,1e-08]
[1757062171097,9.92216285,4407.3,4407.2,1e-08]
[1757062171498,2.26932328,4406.6,4406.5,0.20596701]
[1757062171727,3.94132328,4406.6,4406.5,0.20596701]
[1757062171893,2.26961348,4406.1,4405.8,0.01486701]
[1757062172092,6.14763807,4406.0,4405.8,0.01486701]
[1757062172495,6.14763807,4406.0,4405.9,0.3042]
[1757062173134,3.878,4406.0,4405.9,0.3042]
[1757062174031,3.878,4406.0,4405.9,1.2287]
[1757062177820,2.1397,4406.6,4405.9,0.7719]
[1757062178142,5.15440541,4406.5,4406.0,0.9245]
[1757062178313,2.26940541,4406.5,4406.4,0.3042]
[1757062178510,6.14240541,4406.5,4406.4,0.7719]
[1757062179836,6.14240541,4406.5,4406.4,0.3042]
[1757062180679,1.672,4406.6,4406.4,1.1996]
[1757062180824,3.871,4406.5,4406.4,0.42564]
[1757062181318,3.871,4406.5,4406.4,1.32104]
[1757062181708,3.871,4406.5,4406.4,3.59046628]
[1757062182123,3.871,4406.5,4406.4,1.32104]
[1757062186361,3.871,4406.5,4406.3,2.38227704]
[1757062186362,3.871,4406.5,4406.3,0.1128]
[1757062187761,3.871,4406.5,4406.4,0.2872]
[1757062188471,3.871,4406.5,4406.3,0.1128]
[1757062189360,4.3166,4406.5,4406.3,0.1128]
[1757062189667,3.871,4406.5,4406.3,0.1128]
[1757062191166,6.14038087,4406.5,4406.3,0.1128]
[1757062191366,3.871,4406.5,4406.3,0.1128]
[1757062192434,3.8612,4406.4,4406.3,0.1128]
[1757062192651,3.862,4406.4,4406.3,0.1128]
[1757062192862,3.862,4406.4,4406.3,0.4]
[1757062194370,3.862,4406.4,4406.3,0.1128]
[1757062194766,3.86,4406.4,4406.3,0.4]
[1757062196753,3.858,4406.4,4406.3,1.2954]
[1757062197082,3.858,4406.4,4406.3,3.56485089]
[1757062197270,3.858,4406.4,4406.3,3.12285089]
[1757062197670,3.858,4406.4,4406.3,2.66945089]
[1757062198388,1.673,4406.6,4406.5,2.26937478]
[1757062198581,5.528,4406.6,4406.5,2.55657478]
[1757062199553,1.673,4406.6,4406.5,0.2872]
[1757062199752,5.528,4406.6,4406.5,2.55657478]
[1757062200588,5.526,4406.6,4406.5,2.55657478]
[1757062201097,5.526,4406.6,4406.5,0.2872]
[1757062201295,6.2779,4406.6,4406.3,0.1128]
[1757062201584,5.8323,4406.6,4406.4,2.26942418]
[1757062201890,3.852,4406.5,4406.3,2.38226566]
[1757062202091,3.852,4406.5,4406.4,2.26942628]
[1757062202859,1.673,4406.6,4406.5,2.26937478]
[1757062203059,5.525,4406.6,4406.5,2.26937478]
[1757062204493,1.673,4406.6,4406.5,2.55657478]
[1757062204692,5.524,4406.6,4406.3,2.38225448]
[1757062204861,5.524,4406.6,4406.3,0.1128]
[1757062205367,5.524,4406.6,4406.4,2.26942628]
[1757062205580,0.7519,4406.5,4406.4,2.26942628]
[1757062206092,0.3063,4406.5,4406.4,2.26942628]
[1757062206291,1.673,4406.6,4406.5,2.26937478]
[1757062206472,5.521,4406.6,4406.5,3.00997478]
[1757062206667,1.673,4406.6,4406.5,3.00997478]
[1757062206986,5.521,4406.6,4406.5,3.00997478]
[1757062207691,5.521,4406.6,4406.5,2.55657478]
[1757062207890,5.521,4406.6,4406.5,2.48297478]
[1757062208190,1.673,4406.6,4406.5,2.48297478]
[1757062208364,5.521,4406.6,4406.5,2.48297478]
[1757062208800,5.521,4406.6,4406.4,2.26941444]
[1757062209292,5.521,4406.6,4406.5,2.26937478]
[1757062209889,3.849,4406.6,4406.5,2.55487478]
[1757062212567,3.845,4406.6,4406.4,2.26941385]
[1757062212763,0.4634,4406.6,4406.4,2.26941385]
[1757062212975,4.1574,4406.5,4406.4,2.26941385]
[1757062213379,0.001,4406.6,4406.5,2.26937478]
[1757062213688,3.844,4406.6,4406.5,2.81081364]
[1757062213893,3.844,4406.6,4406.5,2.55487478]
[1757062214401,0.001,4406.6,4406.5,2.55487478]
[1757062214708,3.844,4406.6,4406.5,2.55487478]
[1757062216111,0.001,4406.6,4406.5,2.55487478]
[1757062216399,3.843,4406.6,4406.5,2.55487478]
[1757062216902,3.843,4406.6,4406.5,2.26937478]
[1757062217106,3.842,4406.6,4406.5,2.55487478]
[1757062217712,4.6188,4406.6,4406.4,2.26940224]
[1757062217873,4.1564,4406.6,4406.4,2.26940224]
[1757062218073,0.4624,4406.5,4406.4,2.26940224]
[1757062218506,0.7768,4406.5,4406.4,2.26940224]
[1757062220306,0.776,4406.5,4406.4,2.26940224]
[1757062220979,0.776,4406.5,4406.4,2.26942628]
[1757062223011,3.842,4406.6,4406.4,2.26942628]
[1757062223012,0.001,4406.6,4406.5,3.06137478]
[1757062223185,0.001,4406.6,4406.5,4.28947478]
[1757062223998,5.078,4406.6,4406.3,0.004]
[1757062224185,7.34733572,4406.6,4406.3,0.004]
[1757062224903,0.4632,4406.5,4406.3,0.004]
[1757062225307,0.7768,4406.4,4406.3,2.27347779]
[1757062225505,0.7768,4406.4,4406.3,0.004]
[1757062225821,1.24,4406.4,4406.3,0.004]
[1757062227312,3.50942628,4406.4,4406.3,0.004]
[1757062227623,5.18142628,4406.4,4406.3,0.004]
[1757062230123,9.02142628,4406.4,4406.3,0.004]
[1757062233787,2.912,4406.4,4406.3,0.004]
[1757062234020,5.508,4406.4,4406.3,0.2895]
[1757062234393,5.8224,4406.4,4406.3,0.004]
[1757062235321,2.38314746,4406.6,4406.5,2.26937478]
[1757062235322,0.001,4406.6,4406.5,2.26937478]
[1757062235493,3.838,4406.6,4406.5,6.87136322]
[1757062235688,3.838,4406.6,4406.5,4.60198844]
[1757062236127,3.838,4406.6,4406.3,0.4813]
[1757062236128,2.26942628,4406.4,4406.3,0.004]
[1757062236324,9.10642628,4406.4,4406.3,0.004]
[1757062236521,6.50942628,4406.4,4406.3,0.004]
[1757062236709,10.36042628,4406.4,4406.3,0.004]
[1757062239722,6.50942628,4406.4,4406.3,0.004]
[1757062239927,2.26942628,4406.4,4406.3,0.004]
[1757062240124,6.11942628,4406.4,4406.3,0.004]
[1757062241331,6.43602628,4406.4,4406.3,0.004]
[1757062241895,6.86812628,4406.4,4406.3,0.004]
[1757062243727,2.58602628,4406.4,4406.3,0.004]
[1757062243928,6.43302628,4406.4,4406.3,0.004]
[1757062244837,4.1636,4406.4,4406.3,0.004]
[1757062245015,6.43302628,4406.4,4406.3,0.004]
[1757062245216,3.847,4406.4,4406.3,0.004]
[1757062245424,6.11642628,4406.4,4406.3,0.004]
[1757062245625,6.43302628,4406.4,4406.3,0.004]
[1757062246935,6.86512628,4406.4,4406.3,0.004]
[1757062247239,7.34912628,4406.4,4406.3,0.004]
[1757062248202,7.34832628,4406.4,4406.3,0.004]
[1757062248803,0.001,4406.6,4406.3,0.3191]
[1757062249006,0.001,4406.6,4406.5,6.58586322]
[1757062249208,0.001,4406.6,4406.5,7.597013]
[1757062249404,0.001,4406.6,4406.5,8.849213]
[1757062249637,3.859,4406.6,4406.5,8.849213]
[1757062251137,3.859,4406.6,4406.5,8.374513]
[1757062252040,3.859,4406.6,4406.3,0.004]
[1757062252041,4.1756,4406.6,4406.3,0.004]
[1757062252241,0.4321,4406.5,4406.3,0.004]
[1757062252940,3.9718,4406.6,4406.3,0.004]
[1757062253351,4.4039,4406.6,4406.3,0.004]
[1757062254941,0.3166,4406.4,4406.3,0.004]
[1757062255145,3.854,4406.4,4406.3,2.27347779]
[1757062255647,4.6027,4406.4,4406.3,0.004]
[1757062256150,4.1706,4406.4,4406.3,0.004]
[1757062256310,3.854,4406.4,4406.3,0.004]
[1757062256943,3.854,4406.4,4406.3,2.27347779]
[1757062257313,3.854,4406.4,4406.3,6.90506623]
[1757062258427,3.854,4406.4,4406.3,4.63558844]
[1757062258615,3.854,4406.4,4406.3,6.90506623]
[1757062258948,3.854,4406.4,4406.3,4.63558844]
[1757062259119,3.854,4406.4,4406.3,6.90506623]
[1757062259436,3.854,4406.4,4406.3,4.63558844]
[1757062259625,3.854,4406.4,4406.3,4.32048844]
[1757062260030,3.854,4406.4,4406.3,0.004]
[1757062260544,4.1706,4406.4,4406.3,0.004]
[1757062260936,4.6027,4406.4,4406.3,0.004]
[1757062261533,3.854,4406.4,4406.3,0.004]
[1757062262046,4.1706,4406.4,4406.3,0.004]
[1757062262417,5.0867,4406.4,4406.3,0.004]
[1757062262627,7.35612628,4406.4,4406.3,0.004]
[1757062262824,5.0867,4406.4,4406.3,0.004]
[1757062263028,7.35612628,4406.4,4406.3,0.004]
[1757062267038,3.50212628,4406.4,4406.3,0.004]
[1757062267226,7.35012628,4406.4,4406.3,0.004]
[1757062268627,0.001,4406.6,4406.3,0.7815]
[1757062268954,3.9588,4406.5,4406.3,1.29129884]
[1757062269249,3.9588,4406.5,4406.3,3.56076794]
[1757062269455,3.9588,4406.5,4406.3,1.29129884]
[1757062270149,3.9588,4406.5,4406.3,0.82889884]
[1757062270554,0.001,4406.4,4406.3,0.82889884]
[1757062270728,0.001,4406.4,4406.3,0.3191]
[1757062271458,3.846,4406.4,4406.3,0.004]
[1757062271631,3.846,4406.4,4406.3,2.56197779]
[1757062271833,3.846,4406.4,4406.3,0.2925]
[1757062274637,6.11542628,4406.4,4406.3,0.2925]
[1757062275049,6.40582628,4406.4,4406.3,0.004]
[1757062275835,6.83562628,4406.4,4406.3,0.004]
[1757062276038,6.83482628,4406.4,4406.3,0.004]
[1757062276247,7.31452628,4406.4,4406.3,0.004]
[1757062276564,7.31152628,4406.4,4406.3,0.004]
[1757062278662,10.31152628,4406.4,4406.3,0.004]
[1757062283168,5.26962628,4406.4,4406.3,0.004]
[1757062283348,6.10862628,4406.4,4406.3,0.2925]
[1757062284266,6.10862628,4406.4,4406.3,0.004]
[1757062284638,6.39902628,4406.4,4406.3,0.004]
[1757062284840,10.30852628,4406.4,4406.3,0.004]
[1757062290973,9.82882628,4406.4,4406.3,0.004]
[1757062291383,10.30852628,4406.4,4406.3,0.004]
[1757062294680,2.26962628,4406.4,4406.3,0.7859]
[1757062294988,6.10362628,4406.4,4406.3,1.2555]
[1757062296471,6.82382628,4406.4,4406.3,0.004]
[1757062296672,7.30352628,4406.4,4406.3,0.004]
[1757062297078,6.82382628,4406.4,4406.3,0.004]
[1757062299751,6.10362628,4406.4,4406.3,0.004]
[1757062301191,6.39092628,4406.4,4406.3,0.004]
[1757062301382,6.83832628,4406.4,4406.3,0.004]
[1757062302796,10.33542628,4406.4,4406.3,0.004]
[1757062303656,9.83832628,4406.4,4406.3,0.004]
[1757062303856,9.10282628,4406.4,4406.3,0.3148]
[1757062304053,9.10282628,4406.4,4406.3,0.004]
[1757062304295,5.26942628,4406.4,4406.3,0.3148]
[1757062304655,5.26942628,4406.4,4406.3,0.7755]
[1757062304862,6.21222628,4406.4,4406.3,1.2296]
[1757062305286,6.21222628,4406.4,4406.3,0.7755]
[1757062305691,6.21322628,4406.4,4406.3,0.7755]
[1757062305893,6.21322628,4406.4,4406.3,0.3148]
[1757062308485,3.9438,4406.4,4406.3,0.3148]
[1757062308694,6.21322628,4406.4,4406.3,0.3148]
[1757062309421,3.9438,4406.4,4406.3,0.3148]
[1757062309740,6.21322628,4406.4,4406.3,0.3148]
[1757062310435,6.21222628,4406.4,4406.3,0.3148]
[1757062310599,2.38322628,4406.4,4406.3,0.3148]
[1757062311016,6.21222628,4406.4,4406.3,0.3148]
[1757062312883,6.21222628,4406.4,4406.3,0.004]
[1757062314430,3.9428,4406.4,4406.3,0.3148]
[1757062314834,6.94692628,4406.4,4406.3,0.004]
[1757062315215,6.49952628,4406.4,4406.3,0.004]
[1757062316541,6.21222628,4406.4,4406.3,0.3148]
[1757062316720,3.9428,4406.4,4406.3,0.3148]
[1757062317119,6.21222628,4406.4,4406.3,0.3148]
[1757062317637,2.38322628,4406.4,4406.3,0.3148]
[1757062317839,6.21222628,4406.4,4406.3,0.7755]
[1757062318242,0.001,4406.4,4406.3,0.7755]
[1757062318408,3.83,4406.4,4406.3,0.7755]
[1757062319030,3.83,4406.4,4406.3,0.3148]
[1757062319349,6.09942628,4406.4,4406.3,0.3148]
[1757062320408,6.09942628,4406.4,4406.3,0.004]
[1757062322748,3.83,4406.4,4406.3,0.3148]
[1757062322913,6.09942628,4406.4,4406.3,0.3148]
[1757062323939,6.09942628,4406.4,4406.3,0.004]
[1757062324139,6.38672628,4406.4,4406.3,0.004]
[1757062324342,6.94692628,4406.4,4406.3,0.004]
[1757062326437,7.44402628,4406.4,4406.3,0.004]
[1757062326744,6.94692628,4406.4,4406.3,0.004]
[1757062328241,6.49952628,4406.4,4406.3,0.004]
[1757062328829,6.21222628,4406.4,4406.3,0.004]
[1757062329244,6.99392628,4406.4,4406.3,0.004]
[1757062329414,6.52102628,4406.4,4406.3,0.004]
[1757062329738,10.33332628,4406.4,4406.3,0.004]
[1757062331924,10.33252628,4406.4,4406.3,0.004]
[1757062334515,3.8292,4406.4,4406.3,0.3156]
[1757062334721,3.8292,4406.4,4406.3,1.2312]
[1757062335748,3.8292,4406.4,4406.3,0.7659]
[1757062337422,3.8292,4406.4,4406.3,0.8395]
[1757062338144,6.09862628,4406.4,4406.3,0.3892]
[1757062338361,3.8292,4406.4,4406.3,0.3892]
[1757062341251,0.0002,4406.4,4406.3,0.3892]
[1757062341449,3.8282,4406.4,4406.3,0.3892]
[1757062345467,6.09762628,4406.4,4406.3,0.0776]
[1757062345770,4.6099,4406.4,4406.3,0.0776]
[1757062345932,3.8282,4406.4,4406.3,0.0776]
[1757062346831,3.8282,4406.4,4406.3,0.3892]
[1757062348952,3.8282,4406.4,4406.3,0.0776]
[1757062349854,4.6099,4406.4,4406.3,0.0776]
[1757062350054,6.87932628,4406.4,4406.3,0.0776]
[1757062350255,4.6099,4406.4,4406.3,0.0776]
[1757062351240,4.137,4406.4,4406.3,0.0776]
[1757062353454,6.40642628,4406.4,4406.3,0.0776]
[1757062354095,0.0002,4406.4,4406.3,0.0776]
[1757062354256,0.001,4407.1,4406.8,2.26922029]
[1757062354456,0.001,4407.1,4406.8,10.41384098]
[1757062354658,0.4729,4408.4,4406.8,10.41384098]
[1757062354659,0.4532,4409.2,4407.3,0.792]
[1757062354970,0.727,4409.1,4407.7,14.69399832]
[1757062355278,2.26899296,4409.2,4408.7,2.26824233]
[1757062355279,0.001,4409.2,4408.7,2.26824233]
[1757062355463,0.001,4409.2,4408.7,4.31662069]
[1757062355672,2.26807011,4409.1,4408.7,4.62822069]
[1757062356049,2.26807011,4409.1,4408.7,4.84039966]
[1757062356249,2.26899004,4409.2,4408.7,4.84039966]
[1757062357174,2.26804108,4409.1,4408.7,4.84039966]
[1757062357470,2.2690023,4409.2,4408.7,4.84039966]
[1757062357654,2.26803951,4409.1,4408.7,4.84039966]
[1757062358380,2.26901635,4409.2,4408.7,4.84039966]
[1757062358674,2.26903141,4409.2,4408.7,4.84039966]
[1757062359244,0.001,4409.2,4408.7,4.84039966]
[1757062359546,0.0252,4408.8,4408.7,4.84039966]
[1757062359900,4.6561,4408.8,4407.7,2.94972693]
[1757062360182,0.9273,4408.7,4407.8,0.21148425]
[1757062360353,4.7543,4408.7,4408.0,4.31662069]
[1757062360551,0.3065,4408.1,4408.0,4.31662069]
[1757062360767,0.3065,4408.1,4407.4,2.71367606]
[1757062360768,0.3065,4408.1,4407.4,0.4448]
[1757062360951,2.57505314,4408.1,4407.9,4.31662069]
[1757062361282,0.3065,4408.1,4407.9,4.31662069]
[1757062361483,0.4299,4408.0,4407.7,3.826]
[1757062361689,3.827,4408.7,4407.8,0.21145355]
[1757062361690,2.69835997,4408.3,4407.8,0.21145355]
[1757062362178,0.3065,4407.9,4407.8,0.21145355]
[1757062363289,3.826,4408.3,4407.8,1.85583452]
[1757062363587,3.826,4408.3,4408.0,4.31662069]
[1757062364261,3.9388,4408.3,4408.0,4.31662069]
[1757062364881,2.26839059,4408.5,4408.0,4.31662069]
[1757062365082,2.26839669,4408.4,4408.0,4.31662069]
[1757062365255,2.69829669,4408.4,4408.0,5.04773599]
[1757062365456,2.26846728,4408.3,4408.0,5.04773599]
[1757062365657,0.3065,4408.1,4408.0,5.04773599]
[1757062365891,3.00495107,4408.1,4408.0,5.04773599]
[1757062366055,3.00495107,4408.1,4408.0,4.31662069]
[1757062367695,0.3065,4408.1,4408.0,4.31662069]
[1757062368060,2.26855107,4408.1,4408.0,4.31662069]
[1757062368574,2.26852182,4408.2,4408.0,4.31662069]
[1757062368763,2.69842182,4408.2,4408.0,4.31662069]
[1757062368965,2.26855107,4408.1,4408.0,4.31662069]
[1757062369189,3.9388,4408.3,4408.0,5.51102086]
[1757062369361,6.20728771,4408.3,4408.0,5.51102086]
[1757062369681,2.38128771,4408.3,4408.0,5.51102086]
[1757062370082,2.26855107,4408.1,4408.0,5.21762086]
[1757062370285,2.26855107,4408.1,4408.0,4.31662069]
[1757062370458,2.26855107,4408.1,4407.8,0.86738097]
[1757062370459,2.26863048,4408.0,4407.9,4.31662069]
[1757062370856,0.4299,4408.1,4407.9,4.31662069]
[1757062371054,2.268525,4408.2,4407.9,4.31662069]
[1757062371255,2.38127165,4408.3,4407.9,4.31662069]
[1757062371489,2.38127165,4408.3,4407.9,5.45577623]
[1757062371986,2.38127165,4408.3,4408.2,4.31662069]
[1757062372187,2.68777165,4408.3,4408.2,4.31662069]
[1757062372374,3.11767165,4408.3,4408.2,4.31662069]
[1757062377598,2.26853895,4408.2,4407.9,1.13915554]
[1757062377771,2.26853895,4408.2,4408.0,4.52826767]
[1757062377958,2.26853895,4408.2,4408.0,4.31662069]
[1757062378162,0.5427,4408.3,4408.0,4.31662069]
[1757062378359,2.81117541,4408.3,4408.1,0.21171687]
[1757062378593,2.26850328,4408.2,4408.0,4.31662069]
[1757062378891,2.26850328,4408.2,4408.1,0.21171567]
[1757062379188,2.26849961,4408.2,4408.1,0.21171567]
[1757062379382,2.57499961,4408.2,4408.1,0.21171567]
[1757062379882,2.268654,4407.9,4407.8,0.004]
[1757062380058,6.093654,4407.9,4407.8,0.004]
[1757062380257,7.327454,4407.9,4407.8,0.004]
[1757062380703,10.327454,4407.9,4407.8,0.004]
[1757062385492,3.825,4407.9,4407.8,0.004]
[1757062385700,3.825,4407.9,4407.8,0.72946207]
[1757062385701,6.093654,4407.9,4407.8,0.72946207]